fUST/lending_fUST_20251130
["ID","MTS","AMOUNT","RATE_DAILY","PERIOD"]
[395149901,1764481941730,500.0,8.526e-05,2]
[395149902,1764481944103,532.30671198,8.526e-05,2]
[395149903,1764481948260,8817.12731951,8.442e-05,2]
[395149904,1764481948288,10000.01,8.442e-05,2]
[395149905,1764481948314,10000.01,8.442e-05,2]
[395149906,1764481948339,10000.01,8.442e-05,2]
[395149907,1764481948365,9587.88831406,8.442e-05,2]
[395149908,1764481948909,412.12168594,8.526e-05,2]
[395149909,1764481948935,87.87831406,8.526e-05,2]
[395149910,1764481948975,186.03428632,8.526e-05,2]
[395149911,1764481954370,526.12296936,8.526e-05,2]
[395149912,1764481954500,500.0,8.526e-05,2]
[395149913,1764481956317,6857.0717613,8.442e-05,2]
[395149914,1764481964314,1842.90266896,8.442e-05,2]
[395149915,1764481964338,2757.28920335,8.442e-05,2]
[395149916,1764481969758,500.0,8.526e-05,2]
[395149917,1764481970600,500.0,8.526e-05,2]
[395149918,1764481972709,500.0,8.441e-05,2]
[395149919,1764481974464,1200.0,8.526e-05,2]
[395149920,1764481980167,166.5993798,8.527e-05,2]
[395149921,1764481980927,300.0,8.442e-05,2]
[395149922,1764481982578,300.0,8.526e-05,2]
[395149923,1764481995984,3776.12141685,8.442e-05,2]
[395149924,1764481996008,10000.01,8.442e-05,2]
[395149925,1764481996032,5498.29838031,8.442e-05,2]
[395149926,1764482003750,1303.52022601,8.442e-05,2]
[395149927,1764482019527,2545.5980126,8.442e-05,2]
[395149928,1764482109922,-300.0,8.525e-05,2]
[395149929,1764482109955,-300.0,8.525e-05,2]
[395149930,1764482109991,-300.0,8.525e-05,2]
[395149931,1764482110025,-1200.0,8.525e-05,2]
[395149932,1764482110060,-300.0,8.525e-05,2]
[395149933,1764482154195,-244.67642743,8.526e-05,2]
[395149934,1764482158851,-300.0,8.526e-05,2]
[395149935,1764482163981,244.67642743,8.44e-05,2]
[395149936,1764482169909,-300.0,8.525e-05,2]
[395149937,1764482169961,-8539.6764079,8.526e-05,2]
[395149938,1764482169989,-10000.01,8.526e-05,2]
[395149939,1764482170064,-10000.01,8.526e-05,2]
[395149940,1764482170169,-10000.01,8.526e-05,2]
[395149941,1764482172336,300.0,8.441e-05,2]
[395149942,1764482205096,4016.7114387,7.669e-05,2]
[395149943,1764482244165,-250.0,8.525e-05,2]
[395149944,1764482247746,-50.0,8.525e-05,2]
[395149945,1764482247767,-317.73275744,8.526e-05,2]
[395149946,1764482249442,-279.87695869,8.526e-05,2]
[395149947,1764482250924,-250.0,8.526e-05,2]
[395149948,1764482255063,-612.94363763,8.526e-05,2]
[395149949,1764482259204,732.45499278,8.441e-05,2]
[395149950,1764482274692,-292.71144599,8.525e-05,2]
[395149951,1764482276427,-320.05168554,8.525e-05,2]
[395149952,1764482277993,-307.28855401,8.525e-05,2]
[395149953,1764482282825,-239.46328086,8.525e-05,2]
[395149954,1764482284252,-40.4850336,8.525e-05,2]
[395149955,1764482284285,-187.49829942,8.525e-05,2]
[395149956,1764482289635,-112.50170058,8.525e-05,2]
[395149957,1764482289661,-387.49829942,8.526e-05,2]
[395149958,1764482291209,-112.50170058,8.526e-05,2]
[395149959,1764482291234,-167.37525811,8.526e-05,2]
[395149960,1764482303465,1192.0,8.441e-05,2]
[395149961,1764482321402,174.62180291,0.00012078,6]
[395149962,1764482321819,174.62180291,0.00013198,9]
[395149963,1764482333022,366.74309781,8.385e-05,2]
[395149964,1764482335163,660.13757607,8.385e-05,2]
[395149965,1764482337438,1173.57791301,8.385e-05,2]
[395149966,1764482339582,1833.71548907,8.385e-05,2]
[395149967,1764482341779,24.66949256,8.385e-05,2]
[395149968,1764482341807,2613.2402614,8.385e-05,2]
[395149971,1764482426142,778.08172636,8.422e-05,2]
[395149973,1764482499630,258.19654889,8.301e-05,2]
[395149974,1764482501931,295.08177016,8.301e-05,2]
[395149975,1764482503899,460.60420061,8.301e-05,2]
[395149978,1764482615725,8208.04575398,7.524e-05,2]
[395149979,1764482615747,10000.01,7.524e-05,2]
[395149980,1764482615772,5496.20058412,7.524e-05,2]
[395149981,1764482627484,1500.0,8.437e-05,2]
[395149982,1764482635436,1500.0,8.437e-05,2]
[395149983,1764482643984,1500.0,8.437e-05,2]
[395149984,1764482652182,1500.0,8.437e-05,2]
[395149985,1764482660250,1500.0,8.437e-05,2]
[395149986,1764482668240,1500.0,8.437e-05,2]
[395149987,1764482676341,1500.0,8.437e-05,2]
[395149988,1764482684631,1500.0,8.437e-05,2]
[395149989,1764482693188,781.35315502,8.437e-05,2]
[395149990,1764482700946,1500.0,8.437e-05,2]
[395149991,1764482709687,900.0,8.436e-05,2]
[395149992,1764482724965,687.77089543,8.436e-05,2]
[395149993,1764482732653,2100.0,8.436e-05,2]
[395149994,1764482748531,1743.84958089,8.436e-05,2]
[395149995,1764482756699,2003.29144441,8.436e-05,2]
[395149996,1764482757132,-300.0,8.521e-05,2]
[395149997,1764482757152,-300.0,8.521e-05,2]
[395149998,1764482757174,-300.0,8.521e-05,2]
[395149999,1764482757194,-1200.0,8.521e-05,2]
[395150000,1764482757213,-760.3090044,8.522e-05,2]
[395150001,1764482770505,4152.8689747,8.424e-05,2]
[395150002,1764482770536,536545.88684535,8.424e-05,2]
[395150003,1764482829636,-3024.61167644,8.34e-05,2]
[395150004,1764482839081,-300.0,8.422e-05,2]
[395150005,1764482839103,-291.63464715,8.423e-05,2]
[395150006,1764482840107,-208.36535285,8.423e-05,2]
[395150007,1764482840128,-302.69831202,8.423e-05,2]
[395150008,1764482840149,-500.0,8.423e-05,2]
[395150009,1764482840170,-164.20541141,8.423e-05,2]
[395150010,1764482840190,-500.0,8.423e-05,2]
[395150011,1764482840211,-500.0,8.423e-05,2]
[395150012,1764482840232,-355.20569725,8.423e-05,2]
[395150013,1764482840255,-500.0,8.423e-05,2]
[395150014,1764482840278,-243.21164761,8.423e-05,2]
[395150015,1764482840299,-500.0,8.423e-05,2]
[395150016,1764482840322,-500.0,8.423e-05,2]
[395150017,1764482840344,-500.0,8.423e-05,2]
[395150018,1764482840366,-500.0,8.423e-05,2]
[395150019,1764482840389,-500.0,8.423e-05,2]
[395150020,1764482840411,-203.25945028,8.423e-05,2]
[395150021,1764482840433,-500.0,8.423e-05,2]
[395150022,1764482840455,-500.0,8.423e-05,2]
[395150023,1764482840478,-500.0,8.423e-05,2]
[395150024,1764482840501,-500.0,8.423e-05,2]
[395150025,1764482840526,-500.0,8.423e-05,2]
[395150026,1764482840547,-500.0,8.423e-05,2]
[395150027,1764482840567,-500.0,8.423e-05,2]
[395150028,1764482840588,-400.0,8.423e-05,2]
[395150029,1764482840608,-500.0,8.423e-05,2]
[395150030,1764482840628,-500.0,8.423e-05,2]
[395150031,1764482840650,-500.0,8.423e-05,2]
[395150032,1764482840671,-500.0,8.423e-05,2]
[395150033,1764482840692,-500.0,8.423e-05,2]
[395150034,1764482840716,-500.0,8.423e-05,2]
[395150035,1764482840737,-500.0,8.423e-05,2]
[395150036,1764482840758,-233.18809713,8.423e-05,2]
[395150037,1764482845200,-198.40922333,8.423e-05,2]
[395150038,1764482847197,-68.40267954,8.423e-05,2]
[395150039,1764482847222,-90.50256818,8.423e-05,2]
[395150040,1764482847919,-409.49743182,8.423e-05,2]
[395150041,1764482847952,-200.0,8.423e-05,2]
[395150042,1764482847984,-500.0,8.423e-05,2]
[395150043,1764482848016,-500.0,8.423e-05,2]
[395150044,1764482848050,-500.0,8.423e-05,2]
[395150045,1764482848271,-600.66791272,8.423e-05,2]
[395150046,1764482848305,-500.0,8.423e-05,2]
[395150047,1764482848336,-500.0,8.423e-05,2]
[395150048,1764482848367,-500.0,8.423e-05,2]
[395150049,1764482848400,-500.0,8.423e-05,2]
[395150050,1764482848434,-79.67931092,8.423e-05,2]
[395150051,1764482848603,-420.32068908,8.423e-05,2]
[395150052,1764482848634,-500.0,8.423e-05,2]
[395150053,1764482848667,-500.0,8.423e-05,2]
[395150054,1764482848701,-500.0,8.423e-05,2]
[395150055,1764482848740,-500.0,8.423e-05,2]
[395150056,1764482848774,-500.0,8.423e-05,2]
[395150057,1764482848816,-500.0,8.423e-05,2]
[395150058,1764482848849,-500.0,8.423e-05,2]
[395150059,1764482848882,-500.0,8.423e-05,2]
[395150060,1764482848916,-500.0,8.423e-05,2]
[395150061,1764482848984,-500.0,8.423e-05,2]
[395150062,1764482849017,-500.0,8.423e-05,2]
[395150063,1764482849049,-500.0,8.423e-05,2]
[395150064,1764482849081,-500.0,8.423e-05,2]
[395150065,1764482849115,-500.0,8.423e-05,2]
[395150066,1764482849146,-500.0,8.423e-05,2]
[395150067,1764482849177,-568.26313598,8.423e-05,2]
[395150068,1764482849211,-500.0,8.423e-05,2]
[395150069,1764482849245,-500.0,8.423e-05,2]
[395150070,1764482849278,-363.48372804,8.423e-05,2]
[395150071,1764482849462,-136.51627196,8.423e-05,2]
[395150072,1764482849496,-500.0,8.423e-05,2]
[395150073,1764482849532,-500.0,8.423e-05,2]
[395150074,1764482849563,-250.94288521,8.423e-05,2]
[395150075,1764482849596,-500.0,8.423e-05,2]
[395150076,1764482849631,-500.0,8.423e-05,2]
[395150077,1764482849667,-500.0,8.423e-05,2]
[395150078,1764482849703,-500.0,8.423e-05,2]
[395150079,1764482849736,-500.0,8.423e-05,2]
[395150080,1764482849769,-500.0,8.423e-05,2]
[395150081,1764482849805,-500.0,8.423e-05,2]
[395150082,1764482849918,-500.0,8.423e-05,2]
[395150083,1764482849951,-500.0,8.423e-05,2]
[395150084,1764482849984,-500.0,8.423e-05,2]
[395150085,1764482850018,-500.0,8.423e-05,2]
[395150086,1764482850052,-500.0,8.423e-05,2]
[395150087,1764482850086,-500.0,8.423e-05,2]
[395150088,1764482850121,-500.0,8.423e-05,2]
[395150089,1764482850154,-500.0,8.423e-05,2]
[395150090,1764482850187,-500.0,8.423e-05,2]
[395150091,1764482850218,-500.0,8.423e-05,2]
[395150092,1764482850966,-223.0,8.423e-05,2]
[395150093,1764482851818,-277.0,8.423e-05,2]
[395150094,1764482851851,-500.0,8.423e-05,2]
[395150095,1764482851883,-500.0,8.423e-05,2]
[395150096,1764482851915,-500.0,8.423e-05,2]
[395150097,1764482851947,-155.43241481,8.423e-05,2]
[395150098,1764482851978,-500.0,8.423e-05,2]
[395150099,1764482852010,-500.0,8.423e-05,2]
[395150100,1764482852041,-500.0,8.423e-05,2]
[395150101,1764482852071,-500.0,8.423e-05,2]
[395150102,1764482852103,-500.0,8.423e-05,2]
[395150103,1764482852135,-500.0,8.423e-05,2]
[395150104,1764482852243,-500.0,8.423e-05,2]
[395150105,1764482852276,-500.0,8.423e-05,2]
[395150106,1764482852308,-500.0,8.423e-05,2]
[395150107,1764482852340,-500.0,8.423e-05,2]
[395150108,1764482852371,-500.0,8.423e-05,2]
[395150109,1764482852404,-500.0,8.423e-05,2]
[395150110,1764482852436,-500.0,8.423e-05,2]
[395150111,1764482852470,-500.0,8.423e-05,2]
[395150112,1764482853074,-155.88737735,8.424e-05,2]
[395150113,1764482853103,-574.7493,8.424e-05,2]
[395150114,1764482854582,-198.70537683,8.424e-05,2]
[395150115,1764482856099,-260.34593091,8.424e-05,2]
[395150116,1764482857574,-286.40827121,8.424e-05,2]
[395150117,1764482861728,-215.47878552,8.424e-05,2]
[395150118,1764482864270,-341.6166106,8.424e-05,2]
[395150119,1764482864989,4890.55422509,8.34e-05,2]
[395150120,1764482866551,-162.55440361,8.424e-05,2]
[395150121,1764482872784,1843.8863961,8.34e-05,2]
[395150122,1764482874530,1200.0,8.423e-05,2]
[395150123,1764482882685,300.0,8.423e-05,2]
[395150124,1764482883099,153.55,1e-05,2]
[395150125,1764482883443,153.55,1e-05,2]
[395150126,1764482883770,153.55,1.1e-05,2]
[395150127,1764482884088,153.55,1.1e-05,2]
[395150128,1764482884391,153.55,1.2e-05,2]
[395150129,1764482884682,153.55,1.2e-05,2]
[395150130,1764482884997,153.55,1.3e-05,2]
[395150131,1764482885292,153.55,1.3e-05,2]
[395150132,1764482885606,153.55,1.4e-05,2]
[395150133,1764482886019,153.55,1.4e-05,2]
[395150134,1764482886306,153.55,1.5e-05,2]
[395150135,1764482886620,76.51937881,1.5e-05,2]
[395150136,1764482886645,77.03062119,1.5e-05,2]
[395150137,1764482886930,153.55,1.5e-05,2]
[395150138,1764482887338,153.55,1.6e-05,2]
[395150139,1764482887754,153.55,1.6e-05,2]
[395150140,1764482887810,4952.27964013,8.34e-05,2]
[395150141,1764482888184,153.55,1.7e-05,2]
[395150142,1764482888478,153.55,1.7e-05,2]
[395150143,1764482888979,153.55,1.8e-05,2]
[395150144,1764482889043,153.55,1.8e-05,2]
[395150145,1764482889327,153.55,1.9e-05,2]
[395150146,1764482889624,153.55,1.9e-05,2]
[395150147,1764482889918,153.55,2e-05,2]
[395150148,1764482890220,153.55,2e-05,2]
[395150149,1764482890661,153.55,2e-05,2]
[395150150,1764482890793,153.55,2.1e-05,2]
[395150151,1764482891150,153.55,2.1e-05,2]
[395150152,1764482891481,153.55,2.2e-05,2]
[395150153,1764482891878,153.55,2.2e-05,2]
[395150154,1764482892184,153.55,2.3e-05,2]
[395150155,1764482892498,153.55,2.3e-05,2]
[395150156,1764482892914,153.55,2.4e-05,2]
[395150157,1764482893408,153.55,2.4e-05,2]
[395150158,1764482893736,153.55,2.5e-05,2]
[395150159,1764482894987,153.45,1e-05,2]
[395150160,1764482910467,468.77852743,8.34e-05,2]
[395150161,1764482942679,300.0,8.423e-05,2]
[395150162,1764482945077,-9043.49359493,8.424e-05,2]
[395150163,1764482955146,-4589.95290183,8.424e-05,2]
[395150165,1764482958103,-1614.26593304,8.424e-05,2]
[395150166,1764482964158,-8919.53347122,8.424e-05,2]
[395150167,1764482965078,-975.22520591,8.424e-05,2]
[395150168,1764482966667,823.92121125,8.324e-05,2]
[395150169,1764482966692,870.55331644,8.324e-05,2]
[395150170,1764482969053,9129.45668356,8.34e-05,2]
[395150171,1764482969079,10000.01,8.34e-05,2]
[395150172,1764482971696,-1736.70777179,8.34e-05,2]
[395150173,1764482973084,-8315.15419738,8.424e-05,2]
[395150174,1764482976900,2914.0552604,8.34e-05,2]
[395150175,1764482994257,-408.71259583,8.34e-05,2]
[395150176,1764483002980,151.32,1e-05,2]
[395150177,1764483003279,151.32,1e-05,2]
[395150178,1764483003585,151.32,1.1e-05,2]
[395150179,1764483003947,151.32,1.1e-05,2]
[395150180,1764483004259,151.32,1.1e-05,2]
[395150181,1764483004616,151.32,1.1e-05,2]
[395150182,1764483004949,2.08,1.2e-05,2]
[395150183,1764483004983,149.24,1.2e-05,2]
[395150184,1764483005244,151.32,1.2e-05,2]
[395150185,1764483005743,151.32,1.2e-05,2]
[395150186,1764483005943,151.32,1.3e-05,2]
[395150187,1764483006304,151.32,1.3e-05,2]
[395150188,1764483006600,151.32,1.3e-05,2]
[395150189,1764483006892,151.32,1.3e-05,2]
[395150190,1764483007198,151.32,1.4e-05,2]
[395150191,1764483007553,151.32,1.4e-05,2]
[395150192,1764483008540,151.32,1.4e-05,2]
[395150193,1764483008873,151.32,1.4e-05,2]
[395150194,1764483009218,151.32,1.5e-05,2]
[395150195,1764483009550,151.32,1.5e-05,2]
[395150196,1764483009850,151.32,1.5e-05,2]
[395150197,1764483010148,151.32,1.6e-05,2]
[395150198,1764483010435,151.32,1.6e-05,2]
[395150199,1764483010724,151.32,1.6e-05,2]
[395150200,1764483011032,151.32,1.6e-05,2]
[395150201,1764483011315,151.32,1.7e-05,2]
[395150202,1764483011762,151.32,1.7e-05,2]
[395150203,1764483011963,151.32,1.7e-05,2]
[395150204,1764483012402,151.32,1.8e-05,2]
[395150205,1764483012812,151.32,1.8e-05,2]
[395150206,1764483013032,151.32,1.8e-05,2]
[395150207,1764483013361,151.32,1.8e-05,2]
[395150208,1764483013689,151.32,1.9e-05,2]
[395150209,1764483014040,151.32,1.9e-05,2]
[395150210,1764483014363,151.32,1.9e-05,2]
[395150211,1764483014756,151.32,1.9e-05,2]
[395150212,1764483015065,151.32,2e-05,2]
[395150213,1764483015484,151.32,2e-05,2]
[395150214,1764483015773,151.32,2e-05,2]
[395150215,1764483016102,151.32,2.1e-05,2]
[395150216,1764483016461,151.32,2.1e-05,2]
[395150217,1764483016778,151.32,2.1e-05,2]
[395150218,1764483017119,151.32,2.1e-05,2]
[395150219,1764483017459,151.32,2.2e-05,2]
[395150220,1764483017969,151.32,2.2e-05,2]
[395150221,1764483018466,151.32,2.2e-05,2]
[395150222,1764483018845,151.32,2.3e-05,2]
[395150224,1764483032092,-1200.0,8.339e-05,2]
[395150225,1764483032102,-467.7762393,8.34e-05,2]
[395150244,1764483038148,-482.24165179,8.34e-05,2]
[395150452,1764483040638,-2e-08,8.34e-05,2]
[395150453,1764483040649,-491.01998911,8.34e-05,2]
[395150454,1764483040730,-596.9,8.34e-05,2]
[395150455,1764483040863,-6767.81937343,8.34e-05,2]
[395150456,1764483040872,-220.0,8.34e-05,2]
[395150457,1764483040882,-300.0,8.422e-05,2]
[395150458,1764483040891,-300.0,8.423e-05,2]
[395150459,1764483040900,-300.0,8.423e-05,2]
[395150460,1764483040910,-29171.85442283,8.424e-05,2]
[395150479,1764483044676,-58312.7874814,8.424e-05,2]
[395150480,1764483044835,-46152.35983849,8.424e-05,2]
[395150481,1764483044847,-5669.61570614,8.424e-05,2]
[395150482,1764483044859,-542.41,8.424e-05,2]
[395150486,1764483046071,-11415.18162505,8.424e-05,2]
[395150487,1764483046082,-1438.72,8.424e-05,2]
[395150488,1764483046094,-2463.94049455,8.424e-05,2]
[395150489,1764483046130,-77816.91546596,8.424e-05,2]
[395150490,1764483046939,-1512.23710762,8.424e-05,2]
[395150491,1764483046955,-454.52684659,8.424e-05,2]
[395150492,1764483156503,218.72274953,8.257e-05,2]
[395150493,1764483298321,250.2030881,7.508e-05,2]
[395150494,1764483325321,302.55952172,8.238e-05,2]
[395150495,1764483443170,591.67554114,8.296e-05,2]
[395150496,1764483466276,591.67554114,8.296e-05,2]
[395150497,1764483474759,405.85341367,8.296e-05,2]
[395150498,1764483490038,591.67554114,8.296e-05,2]
[395150499,1764483513152,591.67554114,8.296e-05,2]
[395150500,1764483535120,416.12563482,8.296e-05,2]
[395150501,1764483570384,169.786493,3.711e-05,2]
[395150502,1764483570449,169.786493,5.566e-05,2]
[395150503,1764483570645,169.786493,7.421e-05,2]
[395150519,1764483594370,-591.67554114,8.38e-05,2]
[395150520,1764483594400,-357.31447105,8.419e-05,2]
[395150521,1764483594430,-231.28369723,8.419e-05,2]
[395150522,1764483594459,-1016.14670386,8.419e-05,2]
[395150523,1764483594485,-300.0,8.42e-05,2]
[395150524,1764483594515,-500.0,8.421e-05,2]
[395150525,1764483594545,-500.0,8.421e-05,2]
[395150526,1764483594571,-500.0,8.421e-05,2]
[395150527,1764483594603,-500.0,8.421e-05,2]
[395150528,1764483594638,-500.0,8.421e-05,2]
[395150529,1764483594681,-632.06334332,8.421e-05,2]
[395150530,1764483594719,-500.0,8.421e-05,2]
[395150531,1764483594760,-500.0,8.421e-05,2]
[395150532,1764483594801,-500.0,8.421e-05,2]
[395150533,1764483594836,-500.0,8.421e-05,2]
[395150534,1764483594874,-500.0,8.421e-05,2]
[395150535,1764483594910,-500.0,8.421e-05,2]
[395150536,1764483594947,-500.0,8.421e-05,2]
[395150537,1764483594983,-500.0,8.421e-05,2]
[395150538,1764483595022,-500.0,8.421e-05,2]
[395150539,1764483595055,-532.48675429,8.421e-05,2]
[395150540,1764483595096,-178.05897822,8.421e-05,2]
[395150541,1764483595563,-321.94102178,8.421e-05,2]
[395150542,1764483697676,-231.28369723,8.419e-05,2]
[395150543,1764483697698,-97.77538293,8.42e-05,2]
[395150544,1764483708119,276.91762209,8.205e-05,2]
[395150545,1764483710556,242.30291933,8.205e-05,2]
[395150546,1764483712971,432.25110072,8.205e-05,2]
[395150547,1764483729226,-129.22461707,8.42e-05,2]
[395150548,1764483729253,-75.77538293,8.42e-05,2]
[395150550,1764483787088,9048.53835786,8.324e-05,2]
[395150551,1764483787119,10000.01,8.324e-05,2]
[395150552,1764483789132,-505.0,8.324e-05,2]
[395150553,1764483792296,-505.0,8.324e-05,2]
[395150554,1764483795181,-753.6,8.241e-05,2]
[395150555,1764483842706,248.68,1e-05,2]
[395150556,1764483879793,-300.0,8.205e-05,2]
[395150557,1764483897339,-14.37616445,8.205e-05,2]
[395150558,1764483897372,-188.02956734,8.205e-05,2]
[395150559,1764483899708,-342.53666006,8.205e-05,2]
[395150560,1764483903002,-185.03557514,8.204e-05,2]
[395150561,1764483904431,-114.96442486,8.204e-05,2]
[395150562,1764483904455,-35.3108686,8.205e-05,2]
[395150563,1764483904479,-28.65710261,8.205e-05,2]
[395150564,1764483905936,-211.72877927,8.205e-05,2]
[395150565,1764483908655,-231.28369723,8.205e-05,2]
[395150566,1764483911807,-261.86539424,8.204e-05,2]
[395150567,1764483914256,-209.28303073,8.204e-05,2]
[395150568,1764483915934,-217.0488388,8.204e-05,2]
[395150569,1764483917371,-511.80273623,8.204e-05,2]
[395150570,1764483917399,-133.09677648,8.205e-05,2]
[395150572,1764483920538,-401.23737064,8.205e-05,2]
[395150573,1764483920561,-27.53124712,8.205e-05,2]
[395150574,1764483922558,-470.02203301,8.205e-05,2]
[395150575,1764483925511,-500.0,8.205e-05,2]
[395150577,1764483928732,-574.3275421,8.205e-05,2]
[395150578,1764483928758,-289.23874662,8.205e-05,2]
[395150579,1764483931521,-302.0,8.205e-05,2]
[395150580,1764483932985,-278.37449568,8.205e-05,2]
[395150581,1764483936793,-302.0,8.205e-05,2]
[395150582,1764483939508,-298.0,8.205e-05,2]
[395150583,1764483941361,-329.19198055,8.205e-05,2]
[395150584,1764483942107,-206.85345083,8.205e-05,2]
[395150585,1764483956373,-255.58620195,8.205e-05,2]
[395150586,1764483956397,-74.01619414,8.223e-05,2]
[395150587,1764483959051,-179.28121561,8.223e-05,2]
[395150588,1764483961267,-300.0,8.223e-05,2]
[395150589,1764483963455,-29.85192159,8.223e-05,2]
[395150590,1764483963479,-248.05679264,8.241e-05,2]
[395150591,1764483967897,-222.09128577,8.241e-05,2]
[395150592,1764483971414,-34.85192159,8.241e-05,2]
[395150593,1764483971437,-300.0,8.322e-05,2]
[395150594,1764483971460,-70.3227704,8.323e-05,2]
[395150595,1764483973610,-632.42958462,8.323e-05,2]
[395150596,1764483977204,-166.49931582,8.24e-05,2]
[395150598,1764484010509,268.41515832,8.205e-05,2]
[395150599,1764484012960,306.76018094,8.205e-05,2]
[395150600,1764484015262,478.83346994,8.205e-05,2]
[395150602,1764484054307,-77.70291559,8.24e-05,2]
[395150603,1764484054328,-86.12525021,8.321e-05,2]
[395150605,1764484060188,-166.49931582,8.238e-05,2]
[395150610,1764484113083,174.62180291,0.00012082,9]
[395150611,1764484113850,174.62180291,0.00013583,12]
[395150612,1764484156073,-174.27402663,8.321e-05,2]
[395150613,1764484162078,-1025.72597337,8.321e-05,2]
[395150614,1764484162098,-489.81,8.321e-05,2]
[395150615,1764484162119,-300.0,8.322e-05,2]
[395150616,1764484162138,-6484.3085555,8.323e-05,2]
[395150617,1764484163077,-581.69869528,8.323e-05,2]
[395150618,1764484164079,-1221.30468441,8.323e-05,2]
[395150619,1764484166108,-3231.36865998,8.323e-05,2]
[395150620,1764484171091,-19684.20700917,8.323e-05,2]
[395150621,1764484172095,-18797.11239566,8.323e-05,2]
[395150622,1764484172117,-500.0,8.323e-05,2]
[395150623,1764484172138,-254.38617116,8.323e-05,2]
[395150624,1764484172160,-500.0,8.323e-05,2]
[395150625,1764484172181,-500.0,8.323e-05,2]
[395150626,1764484172202,-500.0,8.323e-05,2]
[395150627,1764484172224,-500.0,8.323e-05,2]
[395150628,1764484172244,-363.20633433,8.323e-05,2]
[395150629,1764484172266,-500.0,8.323e-05,2]
[395150630,1764484172286,-500.0,8.323e-05,2]
[395150631,1764484172307,-500.71147683,8.323e-05,2]
[395150632,1764484172329,-500.0,8.323e-05,2]
[395150633,1764484172351,-500.0,8.323e-05,2]
[395150634,1764484172372,-500.0,8.323e-05,2]
[395150635,1764484172394,-500.0,8.323e-05,2]
[395150636,1764484172416,-500.0,8.323e-05,2]
[395150637,1764484172437,-386.3237481,8.323e-05,2]
[395150638,1764484172457,-211.88881842,8.323e-05,2]
[395150639,1764484172477,-500.0,8.323e-05,2]
[395150640,1764484172497,-406.58818634,8.323e-05,2]
[395150641,1764484172515,-2465.59370064,8.324e-05,2]
[395150642,1764484189912,-2960.54593776,8.324e-05,2]
[395150643,1764484201521,300.0,8.323e-05,2]
[395150644,1764484202172,300.0,8.323e-05,2]
[395150645,1764484202933,1200.0,8.323e-05,2]
[395150646,1764484203263,300.0,8.323e-05,2]
[395150647,1764484205365,500.0,8.323e-05,2]
[395150648,1764484205414,394.09525845,8.323e-05,2]
[395150649,1764484205451,234.88503129,8.323e-05,2]
[395150650,1764484205487,500.0,8.323e-05,2]
[395150651,1764484205525,349.93783474,8.323e-05,2]
[395150652,1764484205557,168.36969118,8.323e-05,2]
[395150653,1764484205685,219.0,8.324e-05,2]
[395150654,1764484206102,-8406.35863216,8.324e-05,2]
[395150655,1764484206215,-10000.01,8.324e-05,2]
[395150656,1764484206429,-10000.01,8.324e-05,2]
[395150657,1764484207182,-10000.01,8.324e-05,2]
[395150658,1764484207312,-10000.01,8.324e-05,2]
[395150659,1764484207445,-10000.01,8.324e-05,2]
[395150660,1764484207563,-10000.01,8.324e-05,2]
[395150661,1764484207764,-10000.01,8.324e-05,2]
[395150662,1764484212054,-10000.01,8.324e-05,2]
[395150663,1764484212398,-10000.01,8.324e-05,2]
[395150926,1764484240850,-2e-08,8.319e-05,2]
[395150932,1764484240895,-231.28369721,8.319e-05,2]
[395150934,1764484240907,-268.84225,8.319e-05,2]
[395150937,1764484240917,-444.33852362,8.323e-05,2]
[395150939,1764484240928,-500.0,8.323e-05,2]
[395150941,1764484240939,-298.42574347,8.323e-05,2]
[395150943,1764484240950,-500.0,8.323e-05,2]
[395150945,1764484240961,-500.0,8.323e-05,2]
[395150948,1764484240972,-500.0,8.323e-05,2]
[395150950,1764484240983,-500.0,8.323e-05,2]
[395150952,1764484240995,-600.0,8.323e-05,2]
[395150954,1764484241006,-165.87819077,8.323e-05,2]
[395150956,1764484241017,-157.46333992,8.323e-05,2]
[395150959,1764484241028,-500.0,8.323e-05,2]
[395150961,1764484241039,-500.0,8.323e-05,2]